[Event "Titled Tuesday Blitz June 20 Late 2023"]
[White "Rasulov, Vugar"]
[Black "Manukyan, Sargis A."]
[WhiteFideId "13402390"]
[BlackFideId "13303970"]
[WhiteElo "2509"]
[BlackElo "2187"]
[Result "1-0"]
[Round "2"]
[TimeControl "180+2"]
[Date "2023.06.20"]
[WhiteClock "0:01:38"]
[BlackClock "0:00:10"]
[Board "17"]

1. d4 {[%clk 0:03:00]}  d5 {[%clk 0:02:59]} 2. Nf3 {[%clk 0:03:01]}  Nf6 {[%clk 0:02:59]} 3. c4 {[%clk 0:03:01]}  e5 {[%clk 0:03:00]} 4. Nxe5 {[%clk 0:02:59]}  dxc4 {[%clk 0:02:43]} 5. Nxc4 {[%clk 0:02:52]}  c5 {[%clk 0:02:43]} 6. e3 {[%clk 0:02:48]}  cxd4 {[%clk 0:02:42]} 7. exd4 {[%clk 0:02:47]}  Bb4+ {[%clk 0:02:39]} 8. Nc3 {[%clk 0:02:46]}  O-O {[%clk 0:02:39]} 9. a3 {[%clk 0:02:42]}  Re8+ {[%clk 0:02:33]} 10. Be2 {[%clk 0:02:43]}  Bxc3+ {[%clk 0:02:32]} 11. bxc3 {[%clk 0:02:44]}  Nd5 {[%clk 0:02:25]} 12. Bd2 {[%clk 0:02:39]}  Bg4 {[%clk 0:02:06]} 13. Ne3 {[%clk 0:02:36]}  Bxe2 {[%clk 0:01:59]} 14. Qxe2 {[%clk 0:02:37]}  Nf4 {[%clk 0:02:00]} 15. Qf3 {[%clk 0:02:32]}  Nd3+ {[%clk 0:01:58]} 16. Ke2 {[%clk 0:02:32]}  Nc6 {[%clk 0:01:51]} 17. Rhb1 {[%clk 0:02:23]}  Qd6 {[%clk 0:01:15]} 18. Qf5 {[%clk 0:02:09]}  Nf4+ {[%clk 0:01:13]} 19. Kf1 {[%clk 0:02:10]}  g6 {[%clk 0:01:12]} 20. Nc4 {[%clk 0:02:02]}  Qe7 {[%clk 0:00:53]} 21. Qxf4 {[%clk 0:01:56]}  Qe2+ {[%clk 0:00:53]} 22. Kg1 {[%clk 0:01:57]}  Qxc4 {[%clk 0:00:53]} 23. Rxb7 {[%clk 0:01:56]}  Na5 {[%clk 0:00:38]} 24. Rc7 {[%clk 0:01:45]}  Qe6 {[%clk 0:00:38]} 25. h4 {[%clk 0:01:44]}  Nb3 {[%clk 0:00:32]} 26. Re1 {[%clk 0:01:44]}  Qd5 {[%clk 0:00:29]} 27. Rxe8+ {[%clk 0:01:38]}  Rxe8 {[%clk 0:00:30]} 28. Be3 {[%clk 0:01:38]}  a6 {[%clk 0:00:23]} 29. c4 {[%clk 0:01:38]}  Qe6 {[%clk 0:00:22]} 30. d5 {[%clk 0:01:38]}  Qe5 {[%clk 0:00:10]} 31. Qxf7+ {[%clk 0:01:38]} 1-0


[Site "https://www.chess.com"]

[Event "Titled Tuesday Blitz June 20 Late 2023"]
[White "Lewtak, Damian"]
[Black "Anton Guijarro, David"]
[WhiteFideId "1141724"]
[BlackFideId "2285525"]
[WhiteElo "2302"]
[BlackElo "2618"]
[Result "1/2-1/2"]
[Round "2"]
[TimeControl "180+2"]
[Date "2023.06.20"]
[WhiteClock "0:00:21"]
[BlackClock "0:00:12"]
[Board "18"]

1. e4 {[%clk 0:03:00]}  c6 {[%clk 0:03:00]} 2. Nf3 {[%clk 0:02:59]}  d5 {[%clk 0:03:00]} 3. d3 {[%clk 0:03:00]}  Qc7 {[%clk 0:02:59]} 4. c4 {[%clk 0:02:58]}  dxe4 {[%clk 0:02:58]} 5. dxe4 {[%clk 0:02:59]}  e5 {[%clk 0:02:58]} 6. Bd3 {[%clk 0:02:56]}  Bc5 {[%clk 0:02:57]} 7. O-O {[%clk 0:02:55]}  Nf6 {[%clk 0:02:56]} 8. Nbd2 {[%clk 0:02:55]}  O-O {[%clk 0:02:55]} 9. Nb3 {[%clk 0:02:54]}  Be7 {[%clk 0:02:54]} 10. h3 {[%clk 0:02:53]}  Rd8 {[%clk 0:02:54]} 11. Qc2 {[%clk 0:02:52]}  a5 {[%clk 0:02:54]} 12. a4 {[%clk 0:02:51]}  Na6 {[%clk 0:02:54]} 13. Qe2 {[%clk 0:02:47]}  Nd7 {[%clk 0:02:49]} 14. Be3 {[%clk 0:02:45]}  Ndc5 {[%clk 0:02:47]} 15. Nxc5 {[%clk 0:02:43]}  Nxc5 {[%clk 0:02:45]} 16. Bc2 {[%clk 0:02:42]}  Be6 {[%clk 0:02:42]} 17. Rad1 {[%clk 0:02:40]}  h6 {[%clk 0:02:37]} 18. b3 {[%clk 0:02:35]}  Na6 {[%clk 0:02:23]} 19. Rxd8+ {[%clk 0:02:30]}  Rxd8 {[%clk 0:02:22]} 20. Rd1 {[%clk 0:02:30]}  Re8 {[%clk 0:02:21]} 21. Ne1 {[%clk 0:02:11]}  Bc5 {[%clk 0:02:07]} 22. Bc1 {[%clk 0:02:00]}  f6 {[%clk 0:01:40]} 23. Kh1 {[%clk 0:01:52]}  Rd8 {[%clk 0:01:36]} 24. Rxd8+ {[%clk 0:01:47]}  Qxd8 {[%clk 0:01:36]} 25. Nd3 {[%clk 0:01:46]}  Bd4 {[%clk 0:01:36]} 26. f4 {[%clk 0:01:37]}  exf4 {[%clk 0:01:32]} 27. Nxf4 {[%clk 0:01:38]}  Bf7 {[%clk 0:01:32]} 28. e5 {[%clk 0:01:29]}  Bxe5 {[%clk 0:01:21]} 29. Qe4 {[%clk 0:01:26]}  Kf8 {[%clk 0:01:11]} 30. Qf5 {[%clk 0:01:14]}  Nc5 {[%clk 0:01:06]} 31. Ba3 {[%clk 0:01:05]}  b6 {[%clk 0:01:07]} 32. Ne6+ {[%clk 0:00:40]}  Bxe6 {[%clk 0:01:06]} 33. Qxe6 {[%clk 0:00:39]}  Qd2 {[%clk 0:00:42]} 34. Bxc5+ {[%clk 0:00:39]}  bxc5 {[%clk 0:00:43]} 35. Qc8+ {[%clk 0:00:38]}  Ke7 {[%clk 0:00:32]} 36. Qb7+ {[%clk 0:00:30]}  Qd7 {[%clk 0:00:21]} 37. Qxd7+ {[%clk 0:00:29]}  Kxd7 {[%clk 0:00:22]} 38. g4 {[%clk 0:00:25]}  Kd6 {[%clk 0:00:20]} 39. Be4 {[%clk 0:00:25]}  Bb2 {[%clk 0:00:09]} 40. Kg2 {[%clk 0:00:25]}  Ke5 {[%clk 0:00:10]} 41. Bxc6 {[%clk 0:00:24]}  Kd4 {[%clk 0:00:09]} 42. Kf3 {[%clk 0:00:23]}  Kc3 {[%clk 0:00:09]} 43. Bb5 {[%clk 0:00:21]}  Kxb3 {[%clk 0:00:07]} 44. h4 {[%clk 0:00:19]}  g6 {[%clk 0:00:04]} 45. h5 {[%clk 0:00:19]}  gxh5 {[%clk 0:00:04]} 46. gxh5 {[%clk 0:00:20]}  Kc3 {[%clk 0:00:05]} 47. Ba6 {[%clk 0:00:18]}  Kd4 {[%clk 0:00:05]} 48. Bb5 {[%clk 0:00:18]}  Ke5 {[%clk 0:00:05]} 49. Be8 {[%clk 0:00:17]}  f5 {[%clk 0:00:06]} 50. Bd7 {[%clk 0:00:17]}  Bc1 {[%clk 0:00:06]} 51. Be8 {[%clk 0:00:17]}  Bg5 {[%clk 0:00:07]} 52. Bd7 {[%clk 0:00:17]}  f4 {[%clk 0:00:08]} 53. Be8 {[%clk 0:00:17]}  Kd4 {[%clk 0:00:08]} 54. Bb5 {[%clk 0:00:18]}  Kd3 {[%clk 0:00:09]} 55. Ba6 {[%clk 0:00:18]}  Kc3 {[%clk 0:00:09]} 56. Bb5 {[%clk 0:00:18]}  Kb4 {[%clk 0:00:10]} 57. Ke4 {[%clk 0:00:19]}  Kb3 {[%clk 0:00:10]} 58. Kf3 {[%clk 0:00:20]}  Kb4 {[%clk 0:00:11]} 59. Ke4 {[%clk 0:00:20]}  Kb3 {[%clk 0:00:11]} 60. Kf3 {[%clk 0:00:21]}  Kb4 {[%clk 0:00:12]} 1/2-1/2


[Site "https://www.chess.com"]

[Event "Titled Tuesday Blitz June 20 Late 2023"]
[White "Rostomyan, Mikayel"]
[Black "Durarbayli, Vasif"]
[WhiteFideId "13313754"]
[BlackFideId "13402935"]
[WhiteElo "2061"]
[BlackElo "2551"]
[Result "1/2-1/2"]
[Round "2"]
[TimeControl "180+2"]
[Date "2023.06.20"]
[WhiteClock "0:00:04"]
[BlackClock "0:00:05"]
[Board "22"]

1. d4 {[%clk 0:03:00]}  Nf6 {[%clk 0:02:59]} 2. Nf3 {[%clk 0:03:00]}  d5 {[%clk 0:02:59]} 3. c4 {[%clk 0:03:00]}  e6 {[%clk 0:02:56]} 4. g3 {[%clk 0:02:55]}  Bb4+ {[%clk 0:02:56]} 5. Bd2 {[%clk 0:02:55]}  Be7 {[%clk 0:02:56]} 6. Bg2 {[%clk 0:02:55]}  O-O {[%clk 0:02:56]} 7. O-O {[%clk 0:02:55]}  Nbd7 {[%clk 0:02:56]} 8. Qc2 {[%clk 0:02:54]}  c6 {[%clk 0:02:56]} 9. Bf4 {[%clk 0:02:49]}  b6 {[%clk 0:02:54]} 10. cxd5 {[%clk 0:02:45]}  cxd5 {[%clk 0:02:54]} 11. Bc7 {[%clk 0:02:44]}  Qe8 {[%clk 0:02:54]} 12. Rc1 {[%clk 0:02:42]}  Bb7 {[%clk 0:02:54]} 13. Nc3 {[%clk 0:02:37]}  Rc8 {[%clk 0:02:48]} 14. Nb5 {[%clk 0:02:28]}  a6 {[%clk 0:02:43]} 15. Na7 {[%clk 0:02:28]}  Ra8 {[%clk 0:02:42]} 16. Nc6 {[%clk 0:02:27]}  Rc8 {[%clk 0:02:37]} 17. Nxe7+ {[%clk 0:02:14]}  Qxe7 {[%clk 0:02:38]} 18. Qb3 {[%clk 0:02:14]}  b5 {[%clk 0:02:32]} 19. Ba5 {[%clk 0:02:03]}  Rc4 {[%clk 0:02:18]} 20. e3 {[%clk 0:01:16]}  Rfc8 {[%clk 0:02:17]} 21. Qd1 {[%clk 0:01:08]}  Ne4 {[%clk 0:02:02]} 22. Bf1 {[%clk 0:01:05]}  h6 {[%clk 0:01:51]} 23. a3 {[%clk 0:00:57]}  Qf6 {[%clk 0:01:50]} 24. Be2 {[%clk 0:00:48]}  Qf5 {[%clk 0:01:46]} 25. b3 {[%clk 0:00:36]}  Rxc1 {[%clk 0:01:30]} 26. Rxc1 {[%clk 0:00:37]}  Ndf6 {[%clk 0:01:30]} 27. Rxc8+ {[%clk 0:00:35]}  Bxc8 {[%clk 0:01:31]} 28. Be1 {[%clk 0:00:18]}  Bd7 {[%clk 0:01:23]} 29. Ne5 {[%clk 0:00:18]}  h5 {[%clk 0:01:16]} 30. Nxd7 {[%clk 0:00:17]}  Nxd7 {[%clk 0:01:17]} 31. Bxh5 {[%clk 0:00:17]}  Ndf6 {[%clk 0:01:10]} 32. Be2 {[%clk 0:00:17]}  g5 {[%clk 0:01:10]} 33. f3 {[%clk 0:00:16]}  Nd6 {[%clk 0:01:10]} 34. Kg2 {[%clk 0:00:16]}  Qh7 {[%clk 0:01:04]} 35. g4 {[%clk 0:00:16]}  Nfe8 {[%clk 0:00:53]} 36. Bd3 {[%clk 0:00:15]}  Qg7 {[%clk 0:00:52]} 37. Bg3 {[%clk 0:00:16]}  f6 {[%clk 0:00:52]} 38. Qc2 {[%clk 0:00:16]}  Qd7 {[%clk 0:00:53]} 39. a4 {[%clk 0:00:15]}  Kg7 {[%clk 0:00:53]} 40. axb5 {[%clk 0:00:15]}  Nxb5 {[%clk 0:00:53]} 41. Qc5 {[%clk 0:00:13]}  Ned6 {[%clk 0:00:53]} 42. h4 {[%clk 0:00:10]}  gxh4 {[%clk 0:00:53]} 43. Bxh4 {[%clk 0:00:11]}  f5 {[%clk 0:00:52]} 44. Bg3 {[%clk 0:00:10]}  fxg4 {[%clk 0:00:52]} 45. Be5+ {[%clk 0:00:11]}  Kg8 {[%clk 0:00:50]} 46. fxg4 {[%clk 0:00:11]}  Nf7 {[%clk 0:00:50]} 47. Bxb5 {[%clk 0:00:10]}  axb5 {[%clk 0:00:47]} 48. Qc7 {[%clk 0:00:09]}  Qxc7 {[%clk 0:00:44]} 49. Bxc7 {[%clk 0:00:10]}  Kh7 {[%clk 0:00:44]} 50. Kf3 {[%clk 0:00:10]}  Kg6 {[%clk 0:00:44]} 51. Kf4 {[%clk 0:00:10]}  Kf6 {[%clk 0:00:45]} 52. Be5+ {[%clk 0:00:10]}  Kg6 {[%clk 0:00:39]} 53. Bc7 {[%clk 0:00:10]}  Kf6 {[%clk 0:00:39]} 54. e4 {[%clk 0:00:08]}  dxe4 {[%clk 0:00:36]} 55. Kxe4 {[%clk 0:00:09]}  Kg5 {[%clk 0:00:37]} 56. Kf3 {[%clk 0:00:08]}  Kf6 {[%clk 0:00:35]} 57. Kf4 {[%clk 0:00:07]}  Ke7 {[%clk 0:00:32]} 58. Be5 {[%clk 0:00:07]}  Nd8 {[%clk 0:00:30]} 59. g5 {[%clk 0:00:07]}  Kf7 {[%clk 0:00:31]} 60. Ke4 {[%clk 0:00:06]}  Nc6 {[%clk 0:00:15]} 61. d5 {[%clk 0:00:06]}  exd5+ {[%clk 0:00:15]} 62. Kxd5 {[%clk 0:00:06]}  Na5 {[%clk 0:00:16]} 63. b4 {[%clk 0:00:06]}  Nc4 {[%clk 0:00:16]} 64. Bd4 {[%clk 0:00:06]}  Kg6 {[%clk 0:00:16]} 65. Bf6 {[%clk 0:00:06]}  Na3 {[%clk 0:00:17]} 66. Kc5 {[%clk 0:00:06]}  Kf5 {[%clk 0:00:17]} 67. Bb2 {[%clk 0:00:07]}  Nc2 {[%clk 0:00:10]} 68. Bc1 {[%clk 0:00:07]}  Ne1 {[%clk 0:00:09]} 69. Kxb5 {[%clk 0:00:07]}  Nd3 {[%clk 0:00:10]} 70. Bd2 {[%clk 0:00:07]}  Ke6 {[%clk 0:00:10]} 71. Kc4 {[%clk 0:00:08]}  Ne5+ {[%clk 0:00:10]} 72. Kc5 {[%clk 0:00:08]}  Kd7 {[%clk 0:00:10]} 73. b5 {[%clk 0:00:07]}  Kc8 {[%clk 0:00:09]} 74. b6 {[%clk 0:00:07]}  Kb7 {[%clk 0:00:10]} 75. Be3 {[%clk 0:00:06]}  Ng4 {[%clk 0:00:04]} 76. Bd2 {[%clk 0:00:05]}  Ne5 {[%clk 0:00:04]} 77. Kd5 {[%clk 0:00:05]}  Nf3 {[%clk 0:00:03]} 78. g6 {[%clk 0:00:03]}  Nh4 {[%clk 0:00:03]} 79. g7 {[%clk 0:00:03]}  Nf5 {[%clk 0:00:04]} 80. Bc3 {[%clk 0:00:03]}  Nxg7 {[%clk 0:00:04]} 81. Bxg7 {[%clk 0:00:04]}  Kxb6 {[%clk 0:00:05]} 1/2-1/2


[Site "https://www.chess.com"]

[Event "Titled Tuesday Blitz June 20 Late 2023"]
[White "Eljanov, Pavel"]
[Black "Vlassov, Nikolai"]
[WhiteFideId "14102951"]
[BlackFideId "4103360"]
[WhiteElo "2598"]
[BlackElo "2324"]
[Result "1-0"]
[Round "2"]
[TimeControl "180+2"]
[Date "2023.06.20"]
[WhiteClock "0:00:51"]
[BlackClock "0:00:31"]
[Board "23"]

1. d4 {[%clk 0:03:00]}  Nf6 {[%clk 0:02:59]} 2. c4 {[%clk 0:03:01]}  Nc6 {[%clk 0:02:59]} 3. Nc3 {[%clk 0:02:59]}  e5 {[%clk 0:02:59]} 4. d5 {[%clk 0:02:57]}  Ne7 {[%clk 0:02:59]} 5. g3 {[%clk 0:02:53]}  Ng6 {[%clk 0:02:59]} 6. h4 {[%clk 0:02:50]}  Bc5 {[%clk 0:02:52]} 7. h5 {[%clk 0:02:48]}  Ne7 {[%clk 0:02:52]} 8. h6 {[%clk 0:02:43]}  g6 {[%clk 0:02:51]} 9. Bg5 {[%clk 0:02:40]}  Ng4 {[%clk 0:02:42]} 10. e3 {[%clk 0:02:13]}  d6 {[%clk 0:02:40]} 11. Bh3 {[%clk 0:02:10]}  f6 {[%clk 0:02:36]} 12. Bxg4 {[%clk 0:02:07]}  fxg5 {[%clk 0:02:34]} 13. Ne4 {[%clk 0:02:00]}  Bb4+ {[%clk 0:02:26]} 14. Kf1 {[%clk 0:02:01]}  Bxg4 {[%clk 0:02:20]} 15. Qxg4 {[%clk 0:01:59]}  Nf5 {[%clk 0:02:10]} 16. Nxg5 {[%clk 0:01:56]}  O-O {[%clk 0:02:08]} 17. Kg2 {[%clk 0:01:56]}  Qf6 {[%clk 0:02:02]} 18. N1h3 {[%clk 0:01:40]}  a5 {[%clk 0:01:58]} 19. Ne4 {[%clk 0:01:34]}  Qe7 {[%clk 0:01:55]} 20. Nhg5 {[%clk 0:01:33]}  c6 {[%clk 0:01:49]} 21. a3 {[%clk 0:01:30]}  Bc5 {[%clk 0:01:48]} 22. Ne6 {[%clk 0:01:20]}  Bxe3 {[%clk 0:01:42]} 23. Nxf8 {[%clk 0:01:17]}  Rxf8 {[%clk 0:01:42]} 24. Rae1 {[%clk 0:01:12]}  Bd4 {[%clk 0:01:40]} 25. Re2 {[%clk 0:01:11]}  cxd5 {[%clk 0:01:32]} 26. cxd5 {[%clk 0:01:12]}  Qf7 {[%clk 0:01:26]} 27. Ng5 {[%clk 0:01:08]}  Qxd5+ {[%clk 0:01:25]} 28. Qe4 {[%clk 0:01:08]}  Qxe4+ {[%clk 0:01:14]} 29. Nxe4 {[%clk 0:01:06]}  d5 {[%clk 0:01:09]} 30. Ng5 {[%clk 0:01:06]}  Rc8 {[%clk 0:00:58]} 31. g4 {[%clk 0:01:05]}  Nd6 {[%clk 0:00:55]} 32. Nf3 {[%clk 0:01:06]}  Ne4 {[%clk 0:00:47]} 33. Nxd4 {[%clk 0:01:04]}  exd4 {[%clk 0:00:47]} 34. Rd1 {[%clk 0:01:04]}  Rc4 {[%clk 0:00:47]} 35. f3 {[%clk 0:01:04]}  Nc5 {[%clk 0:00:38]} 36. Re7 {[%clk 0:01:01]}  d3 {[%clk 0:00:37]} 37. Rg7+ {[%clk 0:00:56]}  Kh8 {[%clk 0:00:38]} 38. Re1 {[%clk 0:00:55]}  Rc2+ {[%clk 0:00:38]} 39. Kg3 {[%clk 0:00:54]}  Re2 {[%clk 0:00:35]} 40. Rxe2 {[%clk 0:00:53]}  dxe2 {[%clk 0:00:31]} 41. Kf2 {[%clk 0:00:51]} 1-0


[Site "https://www.chess.com"]

[Event "Titled Tuesday Blitz June 20 Late 2023"]
[White "Subelj, Jan"]
[Black "Saric, Ivan"]
[WhiteFideId "14618583"]
[BlackFideId "14508150"]
[WhiteElo "2499"]
[BlackElo "2576"]
[Result "1/2-1/2"]
[Round "2"]
[TimeControl "180+2"]
[Date "2023.06.20"]
[WhiteClock "0:00:03"]
[BlackClock "0:00:02"]
[Board "26"]

1. e4 {[%clk 0:03:00]}  g6 {[%clk 0:02:54]} 2. d4 {[%clk 0:02:59]}  d6 {[%clk 0:02:55]} 3. Be3 {[%clk 0:02:54]}  Bg7 {[%clk 0:02:52]} 4. Qd2 {[%clk 0:02:53]}  Nf6 {[%clk 0:02:46]} 5. f3 {[%clk 0:02:53]}  e5 {[%clk 0:02:43]} 6. Bc4 {[%clk 0:02:47]}  exd4 {[%clk 0:02:42]} 7. Bxd4 {[%clk 0:02:47]}  Nc6 {[%clk 0:02:41]} 8. Bc3 {[%clk 0:02:41]}  O-O {[%clk 0:02:36]} 9. Ne2 {[%clk 0:02:41]}  Ne5 {[%clk 0:02:21]} 10. Bb3 {[%clk 0:02:40]}  a6 {[%clk 0:01:53]} 11. O-O {[%clk 0:02:33]}  Qe7 {[%clk 0:01:51]} 12. a4 {[%clk 0:02:29]}  h5 {[%clk 0:01:47]} 13. Na3 {[%clk 0:02:28]}  h4 {[%clk 0:01:46]} 14. Nc4 {[%clk 0:02:24]}  Nh5 {[%clk 0:01:43]} 15. Ne3 {[%clk 0:02:18]}  Be6 {[%clk 0:01:20]} 16. Nd5 {[%clk 0:02:08]}  Bxd5 {[%clk 0:01:16]} 17. Bxd5 {[%clk 0:02:08]}  c6 {[%clk 0:01:16]} 18. Bb3 {[%clk 0:02:07]}  Rad8 {[%clk 0:01:12]} 19. Rae1 {[%clk 0:01:57]}  Kh7 {[%clk 0:01:11]} 20. g4 {[%clk 0:01:46]}  Bh6 {[%clk 0:01:01]} 21. Qd1 {[%clk 0:01:28]}  Nf4 {[%clk 0:01:00]} 22. Kh1 {[%clk 0:01:19]}  b5 {[%clk 0:00:45]} 23. axb5 {[%clk 0:01:09]}  axb5 {[%clk 0:00:46]} 24. Bd2 {[%clk 0:01:08]}  Nxe2 {[%clk 0:00:42]} 25. Bxh6 {[%clk 0:01:06]}  Ng3+ {[%clk 0:00:25]} 26. hxg3 {[%clk 0:01:05]}  Kxh6 {[%clk 0:00:26]} 27. gxh4 {[%clk 0:01:05]}  Qxh4+ {[%clk 0:00:27]} 28. Kg2 {[%clk 0:01:04]}  Kg7 {[%clk 0:00:26]} 29. Rh1 {[%clk 0:01:03]}  Qf6 {[%clk 0:00:24]} 30. Ref1 {[%clk 0:00:54]}  g5 {[%clk 0:00:24]} 31. Rh5 {[%clk 0:00:54]}  Rh8 {[%clk 0:00:24]} 32. Rfh1 {[%clk 0:00:52]}  Ng6 {[%clk 0:00:19]} 33. Rxh8 {[%clk 0:00:51]}  Rxh8 {[%clk 0:00:19]} 34. Rxh8 {[%clk 0:00:50]}  Kxh8 {[%clk 0:00:20]} 35. c3 {[%clk 0:00:44]}  Kg7 {[%clk 0:00:19]} 36. Qd4 {[%clk 0:00:43]}  Ne5 {[%clk 0:00:17]} 37. Qe3 {[%clk 0:00:41]}  c5 {[%clk 0:00:16]} 38. Bd5 {[%clk 0:00:39]}  b4 {[%clk 0:00:14]} 39. cxb4 {[%clk 0:00:37]}  cxb4 {[%clk 0:00:15]} 40. b3 {[%clk 0:00:35]}  Ng6 {[%clk 0:00:14]} 41. Kf2 {[%clk 0:00:31]}  Nf4 {[%clk 0:00:13]} 42. Qd2 {[%clk 0:00:29]}  Qc3 {[%clk 0:00:07]} 43. Qxc3+ {[%clk 0:00:21]}  bxc3 {[%clk 0:00:08]} 44. Ke3 {[%clk 0:00:21]}  Kf6 {[%clk 0:00:08]} 45. b4 {[%clk 0:00:17]}  Ke7 {[%clk 0:00:08]} 46. b5 {[%clk 0:00:17]}  f6 {[%clk 0:00:07]} 47. b6 {[%clk 0:00:16]}  Kd7 {[%clk 0:00:07]} 48. Ba8 {[%clk 0:00:09]}  Kc8 {[%clk 0:00:07]} 49. Bc6 {[%clk 0:00:09]}  Kb8 {[%clk 0:00:07]} 50. b7 {[%clk 0:00:03]}  Kc7 {[%clk 0:00:07]} 51. Ba4 {[%clk 0:00:02]}  Kxb7 {[%clk 0:00:08]} 52. Kd4 {[%clk 0:00:03]}  Kb6 {[%clk 0:00:08]} 53. Kxc3 {[%clk 0:00:03]}  Kc5 {[%clk 0:00:08]} 54. Bb3 {[%clk 0:00:03]}  Ng6 {[%clk 0:00:09]} 55. Kd3 {[%clk 0:00:03]}  Ne5+ {[%clk 0:00:09]} 56. Ke3 {[%clk 0:00:04]}  Kb4 {[%clk 0:00:09]} 57. Be6 {[%clk 0:00:04]}  Kc3 {[%clk 0:00:09]} 58. f4 {[%clk 0:00:03]}  Nc4+ {[%clk 0:00:04]} 59. Kf3 {[%clk 0:00:02]}  Nd2+ {[%clk 0:00:03]} 60. Ke3 {[%clk 0:00:02]}  Nf1+ {[%clk 0:00:03]} 61. Kf2 {[%clk 0:00:02]}  Nd2 {[%clk 0:00:02]} 62. Ke3 {[%clk 0:00:03]}  Nf1+ {[%clk 0:00:02]} 63. Kf2 {[%clk 0:00:03]}  Nd2 {[%clk 0:00:02]} 64. Ke3 {[%clk 0:00:03]} 1/2-1/2


[Site "https://www.chess.com"]

[Event "Titled Tuesday Blitz June 20 Late 2023"]
[White "Tari, Aryan"]
[Black "Moral Garcia, Serafin"]
[WhiteFideId "1510045"]
[BlackFideId "2201925"]
[WhiteElo "2586"]
[BlackElo "2274"]
[Result "1-0"]
[Round "2"]
[TimeControl "180+2"]
[Date "2023.06.20"]
[WhiteClock "0:00:19"]
[BlackClock "0:00:04"]
[Board "27"]

1. e4 {[%clk 0:03:00]}  e5 {[%clk 0:02:56]} 2. Nf3 {[%clk 0:03:01]}  Nf6 {[%clk 0:02:54]} 3. Nc3 {[%clk 0:02:55]}  Nc6 {[%clk 0:02:53]} 4. a3 {[%clk 0:02:55]}  g6 {[%clk 0:02:48]} 5. Bc4 {[%clk 0:02:53]}  Bg7 {[%clk 0:02:47]} 6. d3 {[%clk 0:02:53]}  d6 {[%clk 0:02:43]} 7. Ba2 {[%clk 0:02:50]}  O-O {[%clk 0:02:42]} 8. h3 {[%clk 0:02:46]}  Be6 {[%clk 0:02:41]} 9. Bxe6 {[%clk 0:02:44]}  fxe6 {[%clk 0:02:41]} 10. O-O {[%clk 0:02:44]}  d5 {[%clk 0:02:37]} 11. Re1 {[%clk 0:02:41]}  d4 {[%clk 0:02:17]} 12. Ne2 {[%clk 0:02:37]}  Nh5 {[%clk 0:02:15]} 13. Bg5 {[%clk 0:02:01]}  Bf6 {[%clk 0:02:13]} 14. Bh6 {[%clk 0:02:00]}  Bg7 {[%clk 0:02:12]} 15. Qd2 {[%clk 0:01:42]}  Qf6 {[%clk 0:01:55]} 16. Bg5 {[%clk 0:01:35]}  Qf7 {[%clk 0:01:53]} 17. Rf1 {[%clk 0:01:36]}  Bf6 {[%clk 0:01:39]} 18. Bh6 {[%clk 0:01:34]}  Bg7 {[%clk 0:01:39]} 19. Bg5 {[%clk 0:01:31]}  Bf6 {[%clk 0:01:39]} 20. Ng3 {[%clk 0:01:32]}  Bxg5 {[%clk 0:01:11]} 21. Qxg5 {[%clk 0:01:33]}  Nxg3 {[%clk 0:01:05]} 22. fxg3 {[%clk 0:01:32]}  Qf6 {[%clk 0:00:58]} 23. Qh6 {[%clk 0:01:20]}  Qg7 {[%clk 0:00:55]} 24. Qxg7+ {[%clk 0:01:20]}  Kxg7 {[%clk 0:00:54]} 25. Ng5 {[%clk 0:01:21]}  Rae8 {[%clk 0:00:23]} 26. Rxf8 {[%clk 0:01:18]}  Kxf8 {[%clk 0:00:24]} 27. Rf1+ {[%clk 0:01:17]}  Kg8 {[%clk 0:00:24]} 28. b4 {[%clk 0:00:51]}  Nd8 {[%clk 0:00:21]} 29. h4 {[%clk 0:00:47]}  h6 {[%clk 0:00:19]} 30. Nf3 {[%clk 0:00:47]}  Nf7 {[%clk 0:00:19]} 31. Nd2 {[%clk 0:00:47]}  Kg7 {[%clk 0:00:19]} 32. Nc4 {[%clk 0:00:46]}  Rd8 {[%clk 0:00:18]} 33. b5 {[%clk 0:00:46]}  Rf8 {[%clk 0:00:15]} 34. a4 {[%clk 0:00:46]}  Rd8 {[%clk 0:00:15]} 35. Kf2 {[%clk 0:00:44]}  Ra8 {[%clk 0:00:15]} 36. Ke2 {[%clk 0:00:43]}  a6 {[%clk 0:00:15]} 37. b6 {[%clk 0:00:41]}  cxb6 {[%clk 0:00:15]} 38. Nxb6 {[%clk 0:00:42]}  Rd8 {[%clk 0:00:15]} 39. Rb1 {[%clk 0:00:36]}  Nd6 {[%clk 0:00:14]} 40. a5 {[%clk 0:00:35]}  Rf8 {[%clk 0:00:10]} 41. Nd7 {[%clk 0:00:34]}  Rf7 {[%clk 0:00:09]} 42. Nxe5 {[%clk 0:00:34]}  Rc7 {[%clk 0:00:09]} 43. Kd2 {[%clk 0:00:34]}  Kf6 {[%clk 0:00:10]} 44. Ng4+ {[%clk 0:00:34]}  Kg7 {[%clk 0:00:09]} 45. Rf1 {[%clk 0:00:26]}  Nb5 {[%clk 0:00:09]} 46. Ne5 {[%clk 0:00:22]}  Na3 {[%clk 0:00:09]} 47. Rc1 {[%clk 0:00:20]}  Rc5 {[%clk 0:00:09]} 48. Nf3 {[%clk 0:00:19]}  e5 {[%clk 0:00:07]} 49. c3 {[%clk 0:00:19]}  dxc3+ {[%clk 0:00:07]} 50. Rxc3 {[%clk 0:00:20]}  Rxa5 {[%clk 0:00:07]} 51. Rc7+ {[%clk 0:00:19]}  Kf6 {[%clk 0:00:07]} 52. Rxb7 {[%clk 0:00:19]}  Nb5 {[%clk 0:00:06]} 53. Rb6+ {[%clk 0:00:19]}  Ke7 {[%clk 0:00:07]} 54. Nxe5 {[%clk 0:00:19]}  Ra2+ {[%clk 0:00:07]} 55. Ke3 {[%clk 0:00:19]}  Nd6 {[%clk 0:00:06]} 56. Nxg6+ {[%clk 0:00:19]}  Kd7 {[%clk 0:00:06]} 57. Ne5+ {[%clk 0:00:19]}  Kc7 {[%clk 0:00:04]} 58. Rc6+ {[%clk 0:00:19]} 1-0


[Site "https://www.chess.com"]

[Event "Titled Tuesday Blitz June 20 Late 2023"]
[White "Domingo Nunez, Ruben"]
[Black "Lashkin, Jegor"]
[WhiteFideId "22245570"]
[BlackFideId "13907808"]
[WhiteElo "2404"]
[BlackElo "2368"]
[Result "1-0"]
[Round "2"]
[TimeControl "180+2"]
[Date "2023.06.20"]
[WhiteClock "0:00:50"]
[BlackClock "0:00:00"]
[Board "28"]

1. c4 {[%clk 0:02:57]}  e5 {[%clk 0:02:59]} 2. Nc3 {[%clk 0:02:56]}  Nf6 {[%clk 0:02:59]} 3. Nf3 {[%clk 0:02:57]}  Nc6 {[%clk 0:03:00]} 4. e4 {[%clk 0:02:57]}  Bb4 {[%clk 0:03:00]} 5. d3 {[%clk 0:02:56]}  d6 {[%clk 0:03:00]} 6. h3 {[%clk 0:02:55]}  O-O {[%clk 0:02:58]} 7. g3 {[%clk 0:02:55]}  a6 {[%clk 0:02:50]} 8. Bg2 {[%clk 0:02:55]}  Bc5 {[%clk 0:02:50]} 9. O-O {[%clk 0:02:55]}  Nd4 {[%clk 0:02:51]} 10. Nd2 {[%clk 0:02:55]}  b5 {[%clk 0:02:45]} 11. b3 {[%clk 0:02:54]}  c6 {[%clk 0:02:45]} 12. a3 {[%clk 0:02:53]}  Be6 {[%clk 0:02:40]} 13. Kh2 {[%clk 0:02:52]}  Nd7 {[%clk 0:02:18]} 14. Nf3 {[%clk 0:02:13]}  h6 {[%clk 0:02:12]} 15. Be3 {[%clk 0:02:06]}  bxc4 {[%clk 0:01:43]} 16. dxc4 {[%clk 0:01:56]}  Nxf3+ {[%clk 0:01:35]} 17. Qxf3 {[%clk 0:01:56]}  Rb8 {[%clk 0:01:32]} 18. Rfb1 {[%clk 0:01:56]}  Bd4 {[%clk 0:01:25]} 19. Bxd4 {[%clk 0:01:33]}  exd4 {[%clk 0:01:26]} 20. Ne2 {[%clk 0:01:34]}  Ne5 {[%clk 0:01:24]} 21. Qf4 {[%clk 0:01:33]}  c5 {[%clk 0:01:24]} 22. Qd2 {[%clk 0:01:28]}  f5 {[%clk 0:01:19]} 23. Nf4 {[%clk 0:01:19]}  Bd7 {[%clk 0:01:16]} 24. b4 {[%clk 0:01:11]}  g5 {[%clk 0:00:46]} 25. Nd3 {[%clk 0:00:51]}  fxe4 {[%clk 0:00:27]} 26. Nxe5 {[%clk 0:00:50]}  dxe5 {[%clk 0:00:27]} 27. bxc5 {[%clk 0:00:51]}  Bc6 {[%clk 0:00:20]} 28. Re1 {[%clk 0:00:48]}  Qf6 {[%clk 0:00:15]} 29. Kg1 {[%clk 0:00:49]}  Qe7 {[%clk 0:00:05]} 30. Bxe4 {[%clk 0:00:48]}  Bxe4 {[%clk 0:00:06]} 31. Rxe4 {[%clk 0:00:49]}  Qxc5 {[%clk 0:00:06]} 32. Rae1 {[%clk 0:00:49]}  Rbe8 {[%clk 0:00:04]} 33. Qe2 {[%clk 0:00:49]}  Rf5 {[%clk 0:00:02]} 34. Qh5 {[%clk 0:00:49]}  Re7 {[%clk 0:00:00]} 35. Qg6+ {[%clk 0:00:50]} 1-0


[Site "https://www.chess.com"]